[Event "SS Manhem Chess Week 2022: Goteborg Open"]
[Site "Schackcentrum, Vegagatan 20, Gothenburg, Sweden"]
[Date "2022.08.12"]
[Round "4.2"]
[White "Eriksson, Joel"]
[Black "Jacobsen, Mikkel Manosri"]
[Result "0-1"]
[TimeControl "15 minutes + 5 seconds per move from move one (Round 1 - 4) / 90 minutes + 30 seconds per move from move one (Round 5 - 8)"]
[BlackTitle "FM"]
[WhiteFideId "1729233"]
[BlackFideId "1444514"]
[WhiteElo "1949"]
[BlackElo "2320"]

1. e4 {[%clk 00:15:08]} {[%emt 00:00:02]} c6 {[%clk 00:15:09]} {[%emt
00:00:01]} 2. d4 {[%clk 00:15:11]} {[%emt 00:00:03]} d5 {[%clk 00:15:12]} 3.
exd5 {[%clk 00:15:14]} {[%emt 00:00:02]} cxd5 {[%clk 00:15:16]} {[%emt
00:00:02]} 4. Bd3 {[%clk 00:15:18]} {[%emt 00:00:04]} Nc6 {[%clk 00:15:18]} 5.
c3 {[%clk 00:15:21]} {[%emt 00:00:01]} Nf6 {[%clk 00:15:21]} {[%emt 00:00:02]}
6. Bf4 {[%clk 00:15:23]} {[%emt 00:00:03]} Bg4 {[%clk 00:15:23]} {[%emt
00:00:03]} 7. Qb3 {[%clk 00:15:27]} {[%emt 00:00:01]} Qd7 {[%clk 00:15:27]}
{[%emt 00:00:02]} 8. Nd2 {[%clk 00:15:30]} {[%emt 00:00:02]} e6 {[%clk
00:15:30]} {[%emt 00:00:01]} 9. Ngf3 {[%clk 00:15:34]} {[%emt 00:00:02]} Bd6
{[%clk 00:15:34]} {[%emt 00:00:02]} 10. Bxd6 {[%clk 00:15:23]} {[%emt
00:00:16]} Qxd6 {[%clk 00:15:37]} {[%emt 00:00:02]} 11. O-O {[%clk 00:15:25]}
{[%emt 00:00:02]} O-O {[%clk 00:15:34]} {[%emt 00:00:09]} 12. Rae1 {[%clk
00:15:11]} {[%emt 00:00:18]} Bxf3 {[%clk 00:13:30]} {[%emt 00:02:09]} 13. Nxf3
{[%clk 00:15:13]} {[%emt 00:00:04]} Nd7 {[%clk 00:13:33]} {[%emt 00:00:02]} 14.
Qc2 {[%clk 00:14:32]} {[%emt 00:00:46]} g6 {[%clk 00:13:37]} 15. Qe2 {[%clk
00:14:21]} {[%emt 00:00:16]} Rab8 {[%clk 00:13:24]} {[%emt 00:00:18]} 16. Ne5
{[%clk 00:13:22]} {[%emt 00:01:03]} Ndxe5 {[%clk 00:13:04]} {[%emt 00:00:24]}
17. dxe5 {[%clk 00:13:24]} {[%emt 00:00:03]} Qc5 {[%clk 00:13:08]} {[%emt
00:00:02]} 18. Kh1 {[%clk 00:13:16]} {[%emt 00:00:13]} b5 {[%clk 00:13:10]}
{[%emt 00:00:02]} 19. f4 {[%clk 00:13:07]} {[%emt 00:00:14]} b4 {[%clk
00:13:02]} {[%emt 00:00:13]} 20. cxb4 {[%clk 00:13:04]} {[%emt 00:00:08]} Qxb4
{[%clk 00:12:22]} {[%emt 00:00:46]} 21. b3 {[%clk 00:11:46]} {[%emt 00:01:23]}
Rfc8 {[%clk 00:11:18]} {[%emt 00:01:08]} 22. Qg4 {[%clk 00:10:58]} {[%emt
00:00:53]} a5 {[%clk 00:10:50]} {[%emt 00:00:34]} 23. Re3 {[%clk 00:10:44]}
{[%emt 00:00:19]} Qd4 {[%clk 00:10:17]} {[%emt 00:00:38]} 24. Rg3 {[%clk
00:10:21]} {[%emt 00:00:28]} Ne7 {[%clk 00:08:51]} {[%emt 00:01:31]} 25. h4
{[%clk 00:09:47]} {[%emt 00:00:39]} Rc3 {[%clk 00:07:39]} {[%emt 00:01:17]} 26.
Bb1 {[%clk 00:09:36]} {[%emt 00:00:15]} Rbc8 {[%clk 00:04:26]} {[%emt
00:03:18]} 27. Rxc3 {[%clk 00:09:07]} {[%emt 00:00:34]} Qxc3 {[%clk 00:04:29]}
{[%emt 00:00:03]} 28. h5 {[%clk 00:09:00]} {[%emt 00:00:12]} Qb2 {[%clk
00:04:01]} {[%emt 00:00:33]} 29. Kh2 {[%clk 00:06:29]} {[%emt 00:02:35]} Rc1
{[%clk 00:03:22]} {[%emt 00:00:44]} 30. Rxc1 {[%clk 00:06:27]} {[%emt
00:00:06]} Qxc1 {[%clk 00:03:26]} {[%emt 00:00:02]} 31. Qg5 {[%clk 00:06:03]}
{[%emt 00:00:29]} Qxb1 {[%clk 00:02:26]} {[%emt 00:01:05]} 32. Qxe7 {[%clk
00:06:05]} {[%emt 00:00:03]} Qf5 {[%clk 00:02:25]} {[%emt 00:00:06]} 33. Qd8+
{[%clk 00:04:14]} {[%emt 00:01:56]} Kg7 {[%clk 00:02:29]} 34. hxg6 {[%clk
00:04:17]} {[%emt 00:00:02]} Qxf4+ {[%clk 00:02:28]} {[%emt 00:00:05]} 35. Kh1
{[%clk 00:03:51]} {[%emt 00:00:31]} hxg6 {[%clk 00:02:19]} {[%emt 00:00:14]} 36.
Qxa5 {[%clk 00:03:42]} {[%emt 00:00:14]} d4 {[%clk 00:01:53]} {[%emt 00:00:32]}
37. Qb5 {[%clk 00:03:30]} {[%emt 00:00:17]} Qe4 {[%clk 00:01:25]} {[%emt
00:00:33]} 38. a4 {[%clk 00:02:27]} {[%emt 00:01:09]} d3 {[%clk 00:01:23]}
{[%emt 00:00:07]} 39. Qa5 {[%clk 00:02:07]} {[%emt 00:00:25]} Qh4+ {[%clk
00:01:16]} {[%emt 00:00:11]} 40. Kg1 {[%clk 00:02:08]} {[%emt 00:00:05]} Qd4+
{[%clk 00:01:18]} {[%emt 00:00:02]} 0-1

[Event "SS Manhem Chess Week 2022: Goteborg Open"]
[Site "Schackcentrum, Vegagatan 20, Gothenburg, Sweden"]
[Date "2022.08.12"]
[Round "4.3"]
[White "Nygren, Kim"]
[Black "Lindholm, Marcus"]
[Result "1-0"]
[TimeControl "15 minutes + 5 seconds per move from move one (Round 1 - 4) / 90 minutes + 30 seconds per move from move one (Round 5 - 8)"]
[WhiteTitle "CM"]
[WhiteFideId "1706136"]
[BlackFideId "1743473"]
[WhiteElo "2229"]
[BlackElo "1666"]

1. e4 {[%clk 00:15:07]} {[%emt 00:00:03]} c5 {[%clk 00:15:06]} {[%emt
00:00:05]} 2. Nf3 {[%clk 00:15:10]} {[%emt 00:00:01]} e6 {[%clk 00:15:08]}
{[%emt 00:00:06]} 3. b4 {[%clk 00:15:14]} cxb4 {[%clk 00:14:49]} {[%emt
00:00:23]} 4. a3 {[%clk 00:15:17]} {[%emt 00:00:02]} bxa3 {[%clk 00:14:32]}
{[%emt 00:00:22]} 5. Bxa3 {[%clk 00:15:13]} {[%emt 00:00:09]} Bxa3 {[%clk
00:14:33]} {[%emt 00:00:04]} 6. Nxa3 {[%clk 00:15:15]} {[%emt 00:00:04]} a6
{[%clk 00:14:27]} {[%emt 00:00:11]} 7. e5 {[%clk 00:15:00]} {[%emt 00:00:19]}
Ne7 {[%clk 00:14:11]} {[%emt 00:00:21]} 8. Nc4 {[%clk 00:14:50]} {[%emt
00:00:15]} O-O {[%clk 00:13:40]} {[%emt 00:00:36]} 9. d4 {[%clk 00:14:52]}
{[%emt 00:00:04]} b5 {[%clk 00:13:05]} {[%emt 00:00:40]} 10. Nd6 {[%clk
00:14:46]} {[%emt 00:00:10]} Nf5 {[%clk 00:13:02]} {[%emt 00:00:09]} 11. Ne4
{[%clk 00:14:07]} {[%emt 00:00:44]} Bb7 {[%clk 00:12:46]} {[%emt 00:00:21]} 12.
Bd3 {[%clk 00:14:06]} {[%emt 00:00:05]} Nc6 {[%clk 00:12:40]} {[%emt 00:00:12]}
13. Nc5 {[%clk 00:13:51]} {[%emt 00:00:19]} Qc7 {[%clk 00:11:57]} {[%emt
00:00:48]} 14. c3 {[%clk 00:13:37]} {[%emt 00:00:19]} b4 {[%clk 00:10:43]}
{[%emt 00:01:19]} 15. g4 {[%clk 00:13:19]} {[%emt 00:00:22]} bxc3 {[%clk
00:10:13]} {[%emt 00:00:35]} 16. Nxb7 {[%clk 00:11:38]} {[%emt 00:01:46]} Qxb7
{[%clk 00:08:40]} {[%emt 00:01:38]} 17. Rb1 {[%clk 00:11:03]} {[%emt 00:00:40]}
Nb4 {[%clk 00:08:30]} {[%emt 00:00:15]} 18. O-O {[%clk 00:07:59]} {[%emt
00:03:08]} Ne7 {[%clk 00:07:33]} {[%emt 00:01:02]} 19. Ng5 {[%clk 00:07:51]}
{[%emt 00:00:13]} h6 {[%clk 00:07:00]} {[%emt 00:00:38]} 20. Ne4 {[%clk
00:07:31]} {[%emt 00:00:24]} a5 {[%clk 00:06:38]} {[%emt 00:00:31]} 21. g5
{[%clk 00:06:52]} {[%emt 00:00:43]} Qc6 {[%clk 00:06:06]} {[%emt 00:00:36]} 22.
gxh6 {[%clk 00:05:33]} {[%emt 00:01:23]} c2 {[%clk 00:05:51]} {[%emt 00:00:21]}
23. Nf6+ {[%clk 00:05:16]} {[%emt 00:00:22]} Kh8 {[%clk 00:05:28]} {[%emt
00:00:28]} 24. hxg7+ {[%clk 00:05:05]} {[%emt 00:00:16]} Kxg7 {[%clk 00:05:31]}
{[%emt 00:00:02]} 25. Qg4+ {[%clk 00:03:41]} {[%emt 00:01:28]} Ng6 {[%clk
00:05:33]} {[%emt 00:00:04]} 26. Nh5+ {[%clk 00:03:19]} {[%emt 00:00:26]} Kh8
{[%clk 00:04:03]} {[%emt 00:01:35]} 27. Qh3 {[%clk 00:02:45]} {[%emt 00:00:39]}
Nh4 {[%clk 00:02:43]} {[%emt 00:01:25]} 28. Qxh4 {[%clk 00:02:16]} {[%emt
00:00:34]} Rg8+ {[%clk 00:02:47]} {[%emt 00:00:02]} 29. Ng3+ {[%clk 00:02:02]}
{[%emt 00:00:18]} Kg7 {[%clk 00:02:51]} {[%emt 00:00:02]} 30. Qh7+ {[%clk
00:01:13]} {[%emt 00:00:53]} Kf8 {[%clk 00:02:52]} {[%emt 00:00:04]} 31. Rbc1
{[%clk 00:01:07]} {[%emt 00:00:11]} Nxd3 {[%clk 00:02:17]} {[%emt 00:00:41]} 32.
Qxd3 {[%clk 00:01:09]} {[%emt 00:00:02]} Rc8 {[%clk 00:02:21]} {[%emt
00:00:01]} 33. Qa3+ {[%clk 00:01:03]} {[%emt 00:00:11]} Ke8 {[%clk 00:02:19]}
{[%emt 00:00:07]} 34. Qxa5 {[%clk 00:01:05]} {[%emt 00:00:03]} Qe4 {[%clk
00:00:51]} {[%emt 00:01:32]} 35. Qd2 {[%clk 00:00:58]} {[%emt 00:00:13]} Qh4
{[%clk 00:00:37]} {[%emt 00:00:19]} 36. Rxc2 {[%clk 00:00:42]} {[%emt
00:00:21]} Rxc2 {[%clk 00:00:40]} {[%emt 00:00:02]} 37. Qxc2 {[%clk 00:00:46]}
{[%emt 00:00:01]} Rh8 {[%clk 00:00:43]} 38. f4 {[%clk 00:00:35]} {[%emt
00:00:16]} 1-0

[Event "SS Manhem Chess Week 2022: Goteborg Open"]
[Site "Schackcentrum, Vegagatan 20, Gothenburg, Sweden"]
[Date "2022.08.12"]
[Round "4.4"]
[White "Westlund, Tim"]
[Black "Rasti, Arvin"]
[Result "0-1"]
[TimeControl "15 minutes + 5 seconds per move from move one (Round 1 - 4) / 90 minutes + 30 seconds per move from move one (Round 5 - 8)"]
[WhiteFideId "1754718"]
[BlackFideId "1741160"]
[WhiteElo "1760"]
[BlackElo "2156"]

1. e4 {[%clk 00:15:09]} c6 {[%clk 00:15:05]} {[%emt 00:00:04]} 2. d4 {[%clk
00:15:12]} {[%emt 00:00:03]} d5 {[%clk 00:15:09]} 3. exd5 {[%clk 00:15:16]}
{[%emt 00:00:01]} cxd5 {[%clk 00:15:13]} {[%emt 00:00:01]} 4. Bd3 {[%clk
00:15:10]} {[%emt 00:00:05]} Nf6 {[%clk 00:15:16]} {[%emt 00:00:08]} 5. Nf3
{[%clk 00:15:09]} {[%emt 00:00:07]} Bg4 {[%clk 00:15:18]} {[%emt 00:00:02]} 6.
h3 {[%clk 00:15:10]} {[%emt 00:00:03]} Bh5 {[%clk 00:15:21]} {[%emt 00:00:02]}
7. Bf4 {[%clk 00:15:13]} {[%emt 00:00:04]} e6 {[%clk 00:15:17]} {[%emt
00:00:09]} 8. Nbd2 {[%clk 00:15:10]} {[%emt 00:00:08]} Nc6 {[%clk 00:15:17]}
{[%emt 00:00:05]} 9. c3 {[%clk 00:15:11]} {[%emt 00:00:04]} Bd6 {[%clk
00:15:17]} {[%emt 00:00:05]} 10. Bxd6 {[%clk 00:15:09]} {[%emt 00:00:06]} Qxd6
{[%clk 00:15:19]} {[%emt 00:00:03]} 11. O-O {[%clk 00:15:04]} {[%emt 00:00:10]}
O-O {[%clk 00:15:10]} {[%emt 00:00:15]} 12. Qc2 {[%clk 00:15:01]} {[%emt
00:00:08]} Rac8 {[%clk 00:14:55]} {[%emt 00:00:20]} 13. Qb3 {[%clk 00:14:53]}
{[%emt 00:00:13]} Rb8 {[%clk 00:14:40]} {[%emt 00:00:19]} 14. Rae1 {[%clk
00:14:46]} {[%emt 00:00:13]} Nd7 {[%clk 00:14:27]} {[%emt 00:00:18]} 15. Bb1
{[%clk 00:14:30]} {[%emt 00:00:20]} b5 {[%clk 00:14:10]} {[%emt 00:00:22]} 16.
Nh4 {[%clk 00:12:57]} {[%emt 00:01:36]} Qf4 {[%clk 00:13:19]} {[%emt 00:00:58]}
17. Qc2 {[%clk 00:12:37]} {[%emt 00:00:24]} Nf6 {[%clk 00:13:11]} {[%emt
00:00:15]} 18. Nhf3 {[%clk 00:12:05]} {[%emt 00:00:37]} Bg6 {[%clk 00:12:56]}
{[%emt 00:00:21]} 19. Qd1 {[%clk 00:11:39]} {[%emt 00:00:30]} Nd7 {[%clk
00:12:26]} {[%emt 00:00:35]} 20. Bxg6 {[%clk 00:11:10]} {[%emt 00:00:34]} hxg6
{[%clk 00:12:29]} {[%emt 00:00:02]} 21. Re2 {[%clk 00:10:25]} {[%emt 00:00:49]}
b4 {[%clk 00:12:13]} {[%emt 00:00:23]} 22. Qa4 {[%clk 00:08:58]} {[%emt
00:01:32]} Qd6 {[%clk 00:12:02]} {[%emt 00:00:15]} 23. Rfe1 {[%clk 00:08:41]}
{[%emt 00:00:22]} bxc3 {[%clk 00:11:39]} {[%emt 00:00:29]} 24. bxc3 {[%clk
00:08:44]} {[%emt 00:00:02]} Rb7 {[%clk 00:10:46]} {[%emt 00:00:58]} 25. Nb3
{[%clk 00:07:59]} {[%emt 00:00:50]} Rfb8 {[%clk 00:10:16]} {[%emt 00:00:34]} 26.
Ne5 {[%clk 00:07:26]} {[%emt 00:00:38]} Ncxe5 {[%clk 00:09:53]} {[%emt
00:00:28]} 27. dxe5 {[%clk 00:07:24]} {[%emt 00:00:07]} Qc7 {[%clk 00:09:48]}
{[%emt 00:00:08]} 28. Re3 {[%clk 00:06:50]} {[%emt 00:00:40]} Nb6 {[%clk
00:09:22]} {[%emt 00:00:32]} 29. Qd4 {[%clk 00:06:18]} {[%emt 00:00:36]} Nc4
{[%clk 00:09:19]} {[%emt 00:00:09]} 30. R3e2 {[%clk 00:06:01]} {[%emt
00:00:19]} Rc8 {[%clk 00:08:54]} {[%emt 00:00:32]} 31. f4 {[%clk 00:05:05]}
{[%emt 00:01:02]} Na3 {[%clk 00:08:36]} {[%emt 00:00:23]} 32. Rc1 {[%clk
00:04:41]} {[%emt 00:00:30]} Nb5 {[%clk 00:08:33]} {[%emt 00:00:08]} 33. Qd3
{[%clk 00:04:17]} {[%emt 00:00:29]} Qb6+ {[%clk 00:08:19]} {[%emt 00:00:18]} 34.
Kh1 {[%clk 00:04:15]} {[%emt 00:00:07]} Rbc7 {[%clk 00:08:19]} {[%emt
00:00:06]} 35. Rec2 {[%clk 00:04:14]} {[%emt 00:00:05]} Rc4 {[%clk 00:08:00]}
{[%emt 00:00:23]} 36. Nd2 {[%clk 00:03:59]} {[%emt 00:00:21]} R4c5 {[%clk
00:07:10]} {[%emt 00:00:55]} 37. c4 {[%clk 00:03:51]} {[%emt 00:00:13]} dxc4
{[%clk 00:05:55]} {[%emt 00:01:20]} 38. Nxc4 {[%clk 00:03:41]} {[%emt
00:00:14]} Qa6 {[%clk 00:05:17]} {[%emt 00:00:43]} 39. Ne3 {[%clk 00:02:38]}
{[%emt 00:01:06]} Rxc2 {[%clk 00:04:11]} {[%emt 00:01:13]} 40. Rxc2 {[%clk
00:02:42]} {[%emt 00:00:01]} Rb8 {[%clk 00:03:14]} {[%emt 00:01:02]} 41. Rb2
{[%clk 00:02:15]} {[%emt 00:00:30]} Qa4 {[%clk 00:02:49]} {[%emt 00:00:31]} 42.
Nc4 {[%clk 00:01:36]} {[%emt 00:00:44]} Rc8 {[%clk 00:02:15]} {[%emt 00:00:40]}
43. Rc2 {[%clk 00:00:51]} {[%emt 00:00:49]} Qb4 {[%clk 00:02:08]} {[%emt
00:00:13]} 44. Nd2 {[%clk 00:00:15]} {[%emt 00:00:40]} Rxc2 {[%clk 00:01:53]}
{[%emt 00:00:20]} 45. Qxc2 {[%clk 00:00:18]} {[%emt 00:00:02]} Qxf4 {[%clk
00:01:49]} {[%emt 00:00:10]} 46. Nf3 {[%clk 00:00:20]} {[%emt 00:00:02]} Kh7
{[%clk 00:01:19]} {[%emt 00:00:36]} 47. Qc5 {[%clk 00:00:21]} {[%emt 00:00:03]}
a6 {[%clk 00:00:48]} {[%emt 00:00:37]} 48. Qe7 {[%clk 00:00:22]} {[%emt
00:00:03]} Qc1+ {[%clk 00:00:42]} {[%emt 00:00:12]} 49. Kh2 {[%clk 00:00:23]}
{[%emt 00:00:02]} Qf4+ {[%clk 00:00:45]} {[%emt 00:00:04]} 50. Kh1 {[%clk
00:00:25]} {[%emt 00:00:03]} f6 {[%clk 00:00:27]} {[%emt 00:00:23]} 51. exf6
{[%clk 00:00:14]} {[%emt 00:00:15]} Qxf6 {[%clk 00:00:30]} {[%emt 00:00:03]} 52.
Ng5+ {[%clk 00:00:08]} {[%emt 00:00:10]} Kh6 {[%clk 00:00:25]} {[%emt
00:00:10]} 53. Nf7+ {[%clk 00:00:08]} {[%emt 00:00:05]} Kh5 {[%clk 00:00:30]}
54. Qe8 {[%clk 00:00:10]} {[%emt 00:00:03]} Qf1+ {[%clk 00:00:30]} {[%emt
00:00:05]} 55. Kh2 {[%clk 00:00:13]} {[%emt 00:00:02]} Qf4+ {[%clk 00:00:34]}
56. Kh1 {[%clk 00:00:17]} {[%emt 00:00:01]} Kh4 {[%clk 00:00:30]} {[%emt
00:00:09]} 57. Qd8+ {[%clk 00:00:10]} {[%emt 00:00:09]} g5 {[%clk 00:00:33]}
{[%emt 00:00:05]} 0-1

[Event "SS Manhem Chess Week 2022: Goteborg Open"]
[Site "Schackcentrum, Vegagatan 20, Gothenburg, Sweden"]
[Date "2022.08.12"]
[Round "4.6"]
[White "Johansson, Jan"]
[Black "Kasib, Laith"]
[Result "0-1"]
[TimeControl "15 minutes + 5 seconds per move from move one (Round 1 - 4) / 90 minutes + 30 seconds per move from move one (Round 5 - 8)"]
[BlackTitle "FM"]
[WhiteFideId "1747568"]
[BlackFideId "4801059"]
[WhiteElo "1666"]
[BlackElo "2051"]

1. d4 {[%clk 00:15:06]} {[%emt 00:00:02]} Nf6 {[%clk 00:14:59]} {[%emt
00:00:12]} 2. Bf4 {[%clk 00:15:06]} {[%emt 00:00:05]} g6 {[%clk 00:14:57]}
{[%emt 00:00:06]} 3. Nc3 {[%clk 00:15:06]} {[%emt 00:00:06]} d5 {[%clk
00:15:00]} {[%emt 00:00:02]} 4. Qd2 {[%clk 00:15:06]} {[%emt 00:00:05]} c6
{[%clk 00:13:53]} {[%emt 00:01:13]} 5. h4 {[%clk 00:14:50]} {[%emt 00:00:20]}
h6 {[%clk 00:12:43]} {[%emt 00:01:15]} 6. Nf3 {[%clk 00:14:34]} {[%emt
00:00:21]} Bf5 {[%clk 00:12:26]} {[%emt 00:00:22]} 7. e3 {[%clk 00:13:55]}
{[%emt 00:00:43]} Bg7 {[%clk 00:11:45]} {[%emt 00:00:46]} 8. Be2 {[%clk
00:13:28]} {[%emt 00:00:33]} Nbd7 {[%clk 00:10:41]} {[%emt 00:01:10]} 9. Ne5
{[%clk 00:12:36]} {[%emt 00:00:56]} Nxe5 {[%clk 00:09:30]} {[%emt 00:01:16]} 10.
Bxe5 {[%clk 00:12:39]} {[%emt 00:00:02]} Qd7 {[%clk 00:09:18]} {[%emt
00:00:17]} 11. f3 {[%clk 00:12:23]} {[%emt 00:00:21]} h5 {[%clk 00:06:52]}
{[%emt 00:02:31]} 12. Na4 {[%clk 00:10:31]} {[%emt 00:01:57]} b6 {[%clk
00:06:32]} {[%emt 00:00:25]} 13. Ba6 {[%clk 00:10:15]} {[%emt 00:00:21]} Bh6
{[%clk 00:06:21]} {[%emt 00:00:17]} 14. O-O-O {[%clk 00:09:56]} {[%emt
00:00:24]} O-O {[%clk 00:06:07]} {[%emt 00:00:18]} 15. Be2 {[%clk 00:08:39]}
{[%emt 00:01:22]} c5 {[%clk 00:05:42]} {[%emt 00:00:30]} 16. Nc3 {[%clk
00:08:13]} {[%emt 00:00:31]} c4 {[%clk 00:05:32]} {[%emt 00:00:16]} 17. Bxf6
{[%clk 00:07:44]} {[%emt 00:00:33]} exf6 {[%clk 00:05:36]} {[%emt 00:00:01]} 18.
g4 {[%clk 00:07:41]} {[%emt 00:00:08]} Rfe8 {[%clk 00:05:32]} {[%emt 00:00:10]}
19. g5 {[%clk 00:07:14]} {[%emt 00:00:32]} fxg5 {[%clk 00:05:24]} {[%emt
00:00:12]} 20. hxg5 {[%clk 00:07:17]} {[%emt 00:00:02]} Bg7 {[%clk 00:05:11]}
{[%emt 00:00:18]} 21. Kb1 {[%clk 00:05:19]} {[%emt 00:02:03]} b5 {[%clk
00:05:14]} {[%emt 00:00:02]} 22. e4 {[%clk 00:05:03]} {[%emt 00:00:20]} dxe4
{[%clk 00:04:29]} {[%emt 00:00:50]} 23. fxe4 {[%clk 00:05:07]} Be6 {[%clk
00:03:49]} {[%emt 00:00:46]} 24. e5 {[%clk 00:04:19]} {[%emt 00:00:53]} b4
{[%clk 00:03:47]} {[%emt 00:00:07]} 25. Ne4 {[%clk 00:04:16]} {[%emt 00:00:07]}
c3 {[%clk 00:03:49]} {[%emt 00:00:03]} 26. bxc3 {[%clk 00:04:00]} {[%emt
00:00:21]} bxc3 {[%clk 00:03:46]} {[%emt 00:00:08]} 27. Nxc3 {[%clk 00:03:18]}
{[%emt 00:00:47]} Rab8+ {[%clk 00:03:42]} {[%emt 00:00:10]} 28. Ka1 {[%clk
00:03:20]} {[%emt 00:00:02]} Rec8 {[%clk 00:03:43]} {[%emt 00:00:04]} 29. Ba6
{[%clk 00:02:09]} {[%emt 00:01:16]} Rc7 {[%clk 00:03:10]} {[%emt 00:00:38]} 30.
Qc1 {[%clk 00:01:32]} {[%emt 00:00:40]} Rxc3 {[%clk 00:03:13]} {[%emt
00:00:03]} 0-1

[Event "SS Manhem Chess Week 2022: Goteborg Open"]
[Site "Schackcentrum, Vegagatan 20, Gothenburg, Sweden"]
[Date "2022.08.12"]
[Round "4.7"]
[White "Pettersson, Anders"]
[Black "Wickstrom, Lars"]
[Result "1-0"]
[TimeControl "15 minutes + 5 seconds per move from move one (Round 1 - 4) / 90 minutes + 30 seconds per move from move one (Round 5 - 8)"]
[WhiteFideId "1715143"]
[BlackFideId "1770837"]
[WhiteElo "2042"]
[BlackElo "1753"]

1. d4 {[%clk 00:15:09]} {[%emt 00:07:04]} d5 {[%clk 00:15:09]} {[%emt
00:00:02]} 2. c4 {[%clk 00:15:12]} {[%emt 00:00:02]} c6 {[%clk 00:15:12]}
{[%emt 00:00:04]} 3. Nc3 {[%clk 00:15:15]} e6 {[%clk 00:15:16]} 4. e4 {[%clk
00:15:16]} {[%emt 00:00:04]} Bb4 {[%clk 00:15:19]} {[%emt 00:00:02]} 5. e5
{[%clk 00:14:24]} {[%emt 00:00:57]} c5 {[%clk 00:14:32]} {[%emt 00:00:53]} 6.
a3 {[%clk 00:14:11]} {[%emt 00:00:18]} cxd4 {[%clk 00:13:09]} {[%emt 00:01:28]}
7. axb4 {[%clk 00:13:47]} {[%emt 00:00:29]} dxc3 {[%clk 00:13:07]} {[%emt
00:00:07]} 8. bxc3 {[%clk 00:13:50]} {[%emt 00:00:02]} Qc7 {[%clk 00:13:02]}
{[%emt 00:00:09]} 9. Nf3 {[%clk 00:12:53]} {[%emt 00:01:01]} dxc4 {[%clk
00:12:49]} {[%emt 00:00:19]} 10. Qd4 {[%clk 00:12:27]} {[%emt 00:00:31]} b5
{[%clk 00:12:29]} {[%emt 00:00:26]} 11. Qg4 {[%clk 00:11:53]} {[%emt 00:00:38]}
f5 {[%clk 00:09:28]} {[%emt 00:03:06]} 12. exf6 {[%clk 00:10:44]} {[%emt
00:01:14]} Nxf6 {[%clk 00:09:29]} {[%emt 00:00:05]} 13. Qg5 {[%clk 00:10:44]}
{[%emt 00:00:04]} Nd5 {[%clk 00:06:36]} {[%emt 00:02:58]} 14. Nd4 {[%clk
00:09:31]} {[%emt 00:01:18]} a6 {[%clk 00:02:58]} {[%emt 00:03:44]} 15. Nxb5
{[%clk 00:08:45]} {[%emt 00:00:52]} axb5 {[%clk 00:01:37]} {[%emt 00:01:26]} 16.
Rxa8 {[%clk 00:08:48]} {[%emt 00:00:02]} Nxc3 {[%clk 00:00:49]} {[%emt
00:00:54]} 17. Bb2 {[%clk 00:08:50]} {[%emt 00:00:02]} Qc6 {[%clk 00:00:22]}
{[%emt 00:00:32]} 18. Rxb8 {[%clk 00:06:13]} 1-0

[Event "SS Manhem Chess Week 2022: Goteborg Open"]
[Site "Schackcentrum, Vegagatan 20, Gothenburg, Sweden"]
[Date "2022.08.12"]
[Round "4.8"]
[White "Persson, Sebastian"]
[Black "Johansson, William"]
[Result "0-1"]
[TimeControl "15 minutes + 5 seconds per move from move one (Round 1 - 4) / 90 minutes + 30 seconds per move from move one (Round 5 - 8)"]
[WhiteFideId "1764187"]
[BlackFideId "1744070"]
[WhiteElo "1631"]
[BlackElo "2015"]

1. d4 {[%clk 00:15:08]} Nf6 {[%emt 00:00:04]} 2. c4 {[%clk 00:15:12]} c5 {[%clk
00:15:12]} {[%emt 00:00:03]} 3. Nf3 {[%clk 00:15:14]} cxd4 {[%clk 00:15:16]}
{[%emt 00:00:02]} 4. Nxd4 {[%clk 00:15:18]} {[%emt 00:00:02]} e5 {[%clk
00:15:20]} 5. Nb3 {[%clk 00:14:57]} {[%emt 00:00:26]} a5 {[%clk 00:15:09]}
{[%emt 00:00:16]} 6. g3 {[%clk 00:14:27]} {[%emt 00:00:35]} a4 {[%clk
00:15:10]} {[%emt 00:00:04]} 7. N3d2 {[%clk 00:14:30]} {[%emt 00:00:02]} Bc5
{[%clk 00:14:58]} {[%emt 00:00:17]} 8. Bg2 {[%clk 00:14:24]} {[%emt 00:00:10]}
Bxf2+ {[%clk 00:13:47]} {[%emt 00:01:16]} 9. Kxf2 {[%clk 00:12:46]} {[%emt
00:01:42]} Ng4+ {[%clk 00:13:50]} {[%emt 00:00:02]} 10. Kf3 {[%emt 00:04:14]}
d5 {[%clk 00:12:48]} 11. e4 {[%clk 00:08:14]} {[%emt 00:01:37]} d4 {[%clk
00:11:08]} {[%emt 00:01:46]} 12. Qf1 {[%clk 00:06:19]} {[%emt 00:01:58]} d3
{[%clk 00:10:45]} {[%emt 00:00:28]} 13. Nb3 {[%clk 00:03:53]} {[%emt 00:02:31]}
Qf6+ {[%clk 00:10:25]} {[%emt 00:00:26]} 14. Bf4 {[%clk 00:03:56]} {[%emt
00:00:02]} axb3 {[%clk 00:10:12]} {[%emt 00:00:18]} 15. Qxd3 {[%clk 00:03:37]}
{[%emt 00:00:25]} exf4 {[%clk 00:10:04]} {[%emt 00:00:12]} 16. gxf4 {[%clk
00:03:17]} {[%emt 00:00:25]} Ne5+ {[%clk 00:10:06]} {[%emt 00:00:02]} 0-1